bitfinex/quotes_ETHUSD_20250929
["timestamp","ask_amount","ask_price","bid_price","bid_amount"]
[1759171821049,0.4393,4171.9,4171.8,5.24424683]
[1759171821249,0.6672,4171.9,4171.8,5.24424683]
[1759171823258,0.6532,4171.9,4171.8,5.24424683]
[1759171823554,0.6532,4171.9,4171.8,2.8472]
[1759171824155,0.6532,4171.9,4171.8,5.24424683]
[1759171824341,0.6532,4171.9,4171.8,2.8472]
[1759171825327,1.01972,4171.9,4171.8,2.8472]
[1759171826223,1.01972,4171.9,4171.8,0.1192]
[1759171826429,1.01972,4171.9,4171.5,5.12518364]
[1759171826645,0.6672,4171.8,4171.6,2.3971593]
[1759171826838,0.6672,4171.7,4171.5,2.51640183]
[1759171827042,0.6672,4171.7,4171.5,2.51641523]
[1759171827246,0.4393,4171.6,4171.5,2.51641523]
[1759171827544,0.72114952,4172.1,4171.7,2.39710091]
[1759171827853,0.85281243,4172.0,4171.7,2.728]
[1759171828032,0.85281243,4172.0,4171.6,2.728]
[1759171828033,0.6672,4171.9,4171.6,2.728]
[1759171828234,0.6672,4171.9,4171.5,0.1192]
[1759171828235,0.6672,4171.8,4171.5,0.1192]
[1759171828553,1.38834952,4171.8,4171.5,0.1192]
[1759171828848,0.71163495,4171.7,4171.5,0.1192]
[1759171829278,6.06436176,4171.6,4171.1,0.002]
[1759171829572,4.38846741,4171.6,4171.1,0.002]
[1759171829734,6.78566726,4171.6,4171.1,0.002]
[1759171829933,1.5721768,4171.5,4171.1,0.002]
[1759171830233,2.2393768,4171.5,4171.1,0.002]
[1759171830554,4.63660911,4171.5,4171.1,0.002]
[1759171830726,2.2393768,4171.5,4171.1,0.002]
[1759171831167,0.72126741,4171.4,4171.1,0.002]
[1759171831354,1.62821198,4171.4,4171.1,0.002]
[1759171831743,0.6672,4171.3,4171.1,0.002]
[1759171832269,0.4393,4171.2,4171.1,0.002]
[1759171832844,0.6672,4171.2,4171.1,0.002]
[1759171833173,1.38846741,4171.2,4171.1,0.002]
[1759171833490,2.31494969,4171.2,4171.1,0.002]
[1759171833664,4.71234132,4171.2,4171.1,0.002]
[1759171833833,7.44034132,4171.2,4171.1,0.002]
[1759171834465,6.71907391,4171.2,4171.1,0.002]
[1759171834666,6.81525423,4171.2,4171.1,0.002]
[1759171835670,9.81525423,4171.2,4171.1,0.002]
[1759171836467,12.05025423,4171.2,4171.1,0.002]
[1759171837985,12.05125423,4171.2,4171.1,0.002]
[1759171838643,9.32225423,4171.2,4171.1,0.002]
[1759171838971,12.05125423,4171.2,4171.1,0.002]
[1759171841469,2.39744911,4171.1,4170.6,0.002]
[1759171841774,13.6221448,4170.7,4170.6,0.002]
[1759171842068,16.3511448,4170.7,4170.6,0.002]
[1759171842447,17.12255173,4170.7,4170.6,0.002]
[1759171844401,22.88192139,4170.7,4170.6,0.002]
[1759171845678,15.89000368,4170.7,4170.6,0.002]
[1759171845882,18.99011929,4170.7,4170.6,0.002]
[1759171853487,7.15100158,4170.7,4170.6,0.002]
[1759171853692,0.09620693,4170.7,4170.6,0.7018]
[1759171853910,2.8482,4170.7,4170.6,0.7018]
[1759171854289,5.8482,4170.7,4170.6,0.7018]
[1759171854612,3.1192,4170.7,4170.6,0.7018]
[1759171856585,12.50879675,4170.7,4170.6,0.2287]
[1759171856886,13.16379675,4170.7,4170.6,0.002]
[1759171857110,13.39249675,4170.7,4170.6,0.002]
[1759171858216,13.39249675,4170.7,4170.6,0.2287]
[1759171860217,10.99481771,4170.7,4170.6,0.2287]
[1759171860520,5.729,4170.7,4170.6,0.7018]
[1759171861499,8.12667904,4170.7,4170.6,0.7018]
[1759171861685,15.11859675,4170.7,4170.6,0.002]
[1759171861905,16.92944351,4170.7,4170.6,0.002]
[1759171864238,17.15614351,4170.7,4170.6,0.002]
[1759171864602,14.75846447,4170.7,4170.6,0.2287]
[1759171864930,15.34529675,4170.7,4170.6,0.2287]
[1759171865126,12.94761771,4170.7,4170.6,0.2287]
[1759171865326,3.2267,4170.7,4170.6,0.7018]
[1759171865528,3.0,4170.7,4170.6,0.7018]
[1759171865734,5.729,4170.7,4170.6,0.7018]
[1759171868835,5.729,4170.7,4170.6,0.2287]
[1759171869140,3.0,4170.7,4170.6,0.7018]
[1759171869936,3.0,4170.7,4170.6,0.002]
[1759171869937,5.39767904,4170.7,4170.6,0.002]
[1759171870136,7.85619473,4170.7,4170.6,0.002]
[1759171870340,5.00291569,4170.7,4170.6,0.2513]
[1759171870638,5.00291569,4170.7,4170.6,0.6801]
[1759171870639,3.0,4170.7,4170.6,0.6801]
[1759171871010,0.001,4171.1,4170.8,2.39759236]
[1759171871234,3.0,4171.0,4170.7,0.6781]
[1759171871435,3.0,4171.0,4170.8,3.07566792]
[1759171871638,3.0,4171.0,4170.9,0.6781]
[1759171871838,0.001,4171.1,4170.9,3.07566407]
[1759171872139,0.001,4171.1,4171.0,0.6781]
[1759171873038,0.001,4171.1,4171.0,3.07560659]
[1759171873913,0.001,4171.1,4171.0,0.6781]
[1759171876244,0.001,4171.1,4170.9,2.51676098]
[1759171876448,0.001,4171.1,4171.0,0.6993]
[1759171876849,0.001,4171.1,4171.0,3.09680659]
[1759171877350,0.001,4171.1,4171.0,0.6993]
[1759171878224,0.001,4171.1,4170.9,2.51674657]
[1759171878225,0.001,4171.1,4170.9,0.1192]
[1759171878645,0.242,4171.1,4170.9,0.1192]
[1759171878963,0.242,4171.1,4170.6,2.39972597]
[1759171878964,3.11320659,4171.0,4170.6,0.002]
[1759171879257,9.72091771,4170.9,4170.6,0.002]
[1759171879456,2.729,4170.9,4170.6,0.002]
[1759171879758,2.729,4170.9,4170.7,0.2494]
[1759171879955,2.729,4170.9,4170.8,0.2494]
[1759171882170,2.729,4170.9,4170.6,0.1212]
[1759171882473,2.729,4170.9,4170.7,0.2494]
[1759171882674,2.729,4170.9,4170.6,2.96883549]
[1759171882832,2.729,4170.9,4170.6,0.1212]
[1759171883036,2.729,4170.9,4170.7,0.2494]
[1759171884434,2.729,4170.9,4170.8,0.2494]
[1759171885178,2.729,4170.9,4170.6,0.3706]
[1759171885362,2.729,4170.9,4170.7,0.2494]
[1759171885763,0.001,4171.1,4170.6,2.51892669]
[1759171885959,2.729,4171.0,4170.6,2.51892669]
[1759171886165,2.729,4171.0,4170.7,0.2494]
[1759171887578,2.729,4171.0,4170.6,0.1212]
[1759171887761,2.729,4171.0,4170.6,0.3706]
[1759171887967,2.689,4171.0,4170.6,0.1212]
[1759171888173,0.7157,4170.9,4170.6,0.1212]
[1759171888846,2.689,4171.0,4170.6,0.1212]
[1759171889040,7.70761771,4170.8,4170.6,0.1212]
[1759171889278,0.7157,4170.8,4170.6,0.1212]
[1759171889459,0.4747,4170.8,4170.6,0.1212]
[1759171889780,3.4047,4171.0,4170.6,0.1212]
[1759171890377,0.7157,4170.9,4170.6,0.1212]
[1759171890752,3.4447,4170.8,4170.6,0.1212]
[1759171891582,9.72091771,4170.8,4170.6,0.002]
[1759171891760,6.23257904,4170.7,4170.6,0.002]
[1759171892083,6.32876676,4170.7,4170.6,0.002]
[1759171894579,6.23257904,4170.7,4170.6,0.002]
[1759171898969,7.67557904,4170.7,4170.6,0.002]
[1759171899162,9.7929577,4170.7,4170.6,0.002]
[1759171901757,17.57687541,4170.7,4170.6,0.002]
[1759171901963,17.67308696,4170.7,4170.6,0.002]
[1759171905175,20.20208696,4170.7,4170.6,0.002]
[1759171905778,13.21016925,4170.7,4170.6,0.002]
[1759171906398,21.43937438,4170.7,4170.6,0.002]
[1759171912504,37.56974238,4170.7,4170.6,0.002]
[1759171912882,20.72367438,4170.7,4170.6,0.002]
[1759171913079,23.45367438,4170.7,4170.6,0.002]
[1759171913481,24.13277438,4170.7,4170.6,0.002]
[1759171913883,23.45367438,4170.7,4170.6,0.002]
[1759171914486,20.72367438,4170.7,4170.6,0.002]
[1759171914807,23.45367438,4170.7,4170.6,0.002]
[1759171915609,20.72367438,4170.7,4170.6,0.002]
[1759171915794,24.13277438,4170.7,4170.6,0.002]
[1759171918708,21.40277438,4170.7,4170.6,0.002]
[1759171918885,24.13277438,4170.7,4170.6,0.002]
[1759171919719,21.40277438,4170.7,4170.6,0.002]
[1759171920024,24.13277438,4170.7,4170.6,0.002]
[1759171920705,21.40277438,4170.7,4170.6,0.002]
[1759171920901,12.37526925,4170.7,4170.6,0.002]
[1759171921225,6.66689059,4170.7,4170.6,0.7248]
[1759171921620,9.66689059,4170.7,4170.6,0.7248]
[1759171921821,6.93689059,4170.7,4170.6,0.7248]
[1759171922119,6.57067904,4170.7,4170.6,0.7248]
[1759171922321,9.57067904,4170.7,4170.6,0.7248]
[1759171923400,10.83975228,4170.7,4170.6,0.7248]
[1759171923592,19.06895741,4170.7,4170.6,0.002]
[1759171923798,19.79047462,4170.7,4170.6,0.002]
[1759171924229,20.46957462,4170.7,4170.6,0.002]
[1759171924796,23.79057462,4170.7,4170.6,0.002]
[1759171927431,23.11147462,4170.7,4170.6,0.002]
[1759171927599,8.83126949,4170.7,4170.6,0.2513]
[1759171927799,6.84067904,4170.7,4170.6,0.7248]
[1759171927995,9.57067904,4170.7,4170.6,0.7248]
[1759171929833,8.12667904,4170.7,4170.6,0.7248]
[1759171931226,5.729,4170.7,4170.6,0.7248]
[1759171931419,5.8482,4170.7,4170.6,0.7248]
[1759171933518,5.51687904,4170.7,4170.6,0.7248]
[1759171933721,8.24587904,4170.7,4170.6,0.7248]
[1759171934227,5.51687904,4170.7,4170.6,0.7248]
[1759171934440,8.24587904,4170.7,4170.6,0.7248]
[1759171936859,8.24587904,4170.7,4170.6,0.2513]
[1759171938155,8.24587904,4170.7,4170.6,0.7034]
[1759171938923,8.24587904,4170.7,4170.6,0.2513]
[1759171942272,9.31032365,4170.7,4170.6,0.002]
[1759171942461,10.02022365,4170.7,4170.6,0.002]
[1759171946434,9.31032365,4170.7,4170.6,0.002]
[1759171946674,10.75332365,4170.7,4170.6,0.002]
[1759171947240,11.22162365,4170.7,4170.6,0.002]
[1759171947439,11.46322365,4170.7,4170.6,0.002]
[1759171948173,10.75332365,4170.7,4170.6,0.002]
[1759171950083,11.46322365,4170.7,4170.6,0.002]
[1759171950480,8.35564461,4170.7,4170.6,0.002]
[1759171950684,7.2912,4170.7,4170.6,0.002]
[1759171950868,9.68887904,4170.7,4170.6,0.002]
[1759171954988,10.39877904,4170.7,4170.6,0.002]
[1759171955457,10.49497624,4170.7,4170.6,0.002]
[1759171967382,10.25337624,4170.7,4170.6,0.002]
[1759171967587,11.74919364,4170.7,4170.6,0.002]
[1759171974714,11.74919364,4170.7,4170.6,0.2451]
[1759171975609,11.74919364,4170.7,4170.6,0.002]
[1759171978213,3.0961972,4170.7,4170.6,0.2451]
[1759171978414,5.8251972,4170.7,4170.6,0.689]
[1759171979322,8.22287624,4170.7,4170.6,0.2451]
[1759171980023,8.22287624,4170.7,4170.6,0.002]
[1759171980715,8.91387624,4170.7,4170.6,0.002]
[1759171980917,10.88834373,4170.7,4170.6,0.002]
[1759171982009,10.19734373,4170.7,4170.6,0.002]
[1759171983909,10.19634373,4170.7,4170.6,0.2451]
[1759171984421,10.19634373,4170.7,4170.6,0.002]
[1759171986919,10.88734373,4170.7,4170.6,0.002]
[1759171987233,12.33034373,4170.7,4170.6,0.002]
[1759171988733,8.91134373,4170.7,4170.6,0.002]
[1759171988941,19.31956654,4170.7,4170.6,0.002]
[1759171990815,21.84856654,4170.7,4170.6,0.002]
[1759171991015,19.31956654,4170.7,4170.6,0.002]
[1759172000835,21.84856654,4170.7,4170.6,0.002]
[1759172001036,19.31956654,4170.7,4170.6,0.002]
[1759172005424,29.63748935,4170.7,4170.6,0.002]
[1759172005628,7.63296652,4170.2,4170.1,0.002]
[1759172005824,18.36638598,4170.2,4170.1,0.002]
[1759172006074,21.59408598,4170.2,4170.1,0.002]
[1759172006271,21.69031558,4170.2,4170.1,0.002]
[1759172006566,37.82068358,4170.2,4170.1,0.002]
[1759172006761,32.61245658,4170.2,4170.1,0.002]
[1759172007625,34.77034558,4170.2,4170.1,0.002]
[1759172008149,34.56845158,4170.2,4170.1,0.002]
[1759172008525,21.69031558,4170.2,4170.1,0.002]
[1759172008731,35.18962458,4170.2,4170.1,0.002]
[1759172009666,35.60841758,4170.2,4170.1,0.002]
[1759172010679,37.52126558,4170.2,4170.1,0.002]
[1759172010858,35.78876558,4170.2,4170.1,0.002]
[1759172011657,37.82068358,4170.2,4170.1,0.002]
[1759172011854,2.39819655,4169.8,4169.5,0.002]
[1759172012056,17.94924142,4169.8,4169.5,0.002]
[1759172012447,18.74417403,4169.8,4169.5,0.002]
[1759172012881,18.50337403,4169.8,4169.5,0.002]
[1759172013672,18.04547403,4169.8,4169.5,0.002]
[1759172013868,18.04547403,4169.8,4169.5,0.2515]
[1759172017073,18.04547403,4169.8,4169.6,0.002]
[1759172020189,20.57447403,4169.8,4169.6,0.002]
[1759172021880,21.23817403,4169.8,4169.6,0.002]
[1759172022959,20.57447403,4169.8,4169.6,0.002]
[1759172023281,20.57447403,4169.8,4169.7,0.2491]
[1759172023502,20.57447403,4169.8,4169.7,0.002]
[1759172028288,21.81654092,4169.8,4169.7,0.002]
[1759172033785,21.81654092,4169.8,4169.7,0.2491]
[1759172034188,6.93742916,4169.8,4169.7,0.7078]
[1759172034398,9.66542916,4169.8,4169.7,0.7078]
[1759172034909,9.66642916,4169.8,4169.7,0.7078]
[1759172037293,9.66642916,4169.8,4169.7,0.002]
[1759172038604,9.66642916,4169.8,4169.7,0.2491]
[1759172038804,11.76238333,4169.8,4169.7,0.2491]
[1759172041291,11.76238333,4169.8,4169.7,0.002]
[1759172041907,11.76238333,4169.8,4169.7,0.2491]
[1759172044019,11.76238333,4169.8,4169.7,0.002]
[1759172044196,9.66642916,4169.8,4169.7,0.7078]
[1759172046301,9.66542916,4169.8,4169.7,0.7078]
[1759172047695,5.49542916,4169.8,4169.7,0.7078]
[1759172048008,8.22242916,4169.8,4169.7,0.7078]
[1759172048619,5.82423261,4169.8,4169.7,0.7078]
[1759172048819,0.09723261,4169.8,4169.7,0.7078]
[1759172049127,0.001,4169.8,4169.7,3.24923661]
[1759172049324,0.001,4169.8,4169.7,4.63772199]
[1759172050217,0.001,4169.8,4169.7,4.61373945]
[1759172050420,0.001,4169.8,4169.7,4.63772199]
[1759172050613,0.001,4169.8,4169.7,5.40573945]
[1759172059720,0.001,4169.8,4169.7,8.13173945]
[1759172067235,0.001,4169.8,4169.7,6.88103945]
[1759172068647,0.001,4169.8,4169.7,7.32843945]
[1759172070543,0.001,4169.8,4169.7,6.88103945]
[1759172071414,0.001,4169.8,4169.7,6.63393945]
[1759172071620,0.7057,4169.8,4169.7,5.24545407]
[1759172074049,0.4629,4169.8,4169.7,5.24545407]
[1759172074266,0.001,4169.8,4169.7,5.24545407]
[1759172074827,0.001,4169.8,4169.7,5.48055407]
[1759172076723,0.001,4169.8,4169.7,5.24545407]
[1759172076922,0.001,4169.8,4169.7,5.48055407]
[1759172077742,0.001,4169.8,4169.7,5.24545407]
[1759172078724,0.7057,4169.8,4169.7,5.24545407]
[1759172079223,0.001,4169.8,4169.7,5.24545407]
[1759172079828,0.001,4169.8,4169.7,7.0900812]
[1759172080252,0.001,4169.8,4169.7,7.5528812]
[1759172080458,0.001,4169.8,4169.7,7.0900812]
[1759172081057,0.001,4169.8,4169.7,7.5528812]
[1759172081660,0.001,4169.8,4169.7,8.3448812]
[1759172082287,0.001,4169.8,4169.7,8.44104441]
[1759172086286,0.001,4169.8,4169.7,16.1133709]
[1759172086576,0.001,4169.8,4169.7,16.5761709]
[1759172088403,0.001,4169.8,4169.7,15.3295398]
[1759172096220,0.001,4169.8,4169.7,14.8667398]
[1759172100292,0.001,4169.8,4169.7,14.6335398]
[1759172101216,0.001,4169.8,4169.7,11.9075398]
[1759172101386,0.001,4169.8,4169.7,14.8647398]
[1759172103018,0.001,4169.8,4169.7,14.6315398]
[1759172103253,0.6805,4169.8,4169.7,13.8395398]
[1759172103536,0.001,4169.8,4169.7,13.8395398]
[1759172104429,0.001,4169.8,4169.7,14.0727398]
[1759172104619,0.001,4169.8,4169.7,13.8395398]
[1759172105832,0.434,4169.8,4169.7,13.8395398]
[1759172106038,0.6805,4169.8,4169.7,13.8395398]
[1759172106711,0.6805,4169.8,4169.7,5.12425407]
[1759172108434,0.6805,4169.8,4169.7,12.10891267]
[1759172111627,0.001,4169.8,4169.7,12.10891267]
[1759172112346,0.001,4169.8,4169.7,12.33831267]
[1759172112838,0.001,4169.8,4169.7,12.77191267]
[1759172113038,0.001,4169.8,4169.7,14.28953665]
[1759172113245,0.001,4169.8,4169.7,13.85593665]
[1759172114015,0.001,4169.8,4169.7,14.31243665]
[1759172116623,0.001,4169.8,4169.7,14.43163665]
[1759172117838,0.001,4169.8,4169.7,13.97513665]
[1759172118859,0.001,4169.8,4169.7,13.74573665]
[1759172121047,0.001,4169.8,4169.7,11.02173665]
[1759172121221,0.001,4169.8,4169.7,13.74573665]
[1759172123124,0.001,4169.8,4169.7,13.97233665]
[1759172123632,0.001,4169.8,4169.7,14.42883665]
[1759172124154,0.001,4169.8,4169.7,15.22083665]
[1759172132221,0.001,4170.3,4170.2,3.18996652]
[1759172132406,0.001,4170.3,4170.2,13.24160143]
[1759172132721,0.001,4170.3,4170.2,14.01992177]
[1759172133017,0.001,4170.3,4170.2,21.00458037]
[1759172135089,0.001,4170.3,4170.2,13.56342177]
[1759172135316,0.001,4170.3,4170.2,13.33682177]
[1759172135518,0.001,4170.3,4170.2,13.33582177]
[1759172135719,0.6622,4170.3,4170.2,13.33582177]
[1759172136021,0.001,4170.3,4170.2,13.33582177]
[1759172137512,0.001,4170.3,4170.2,13.56242177]
[1759172141318,0.001,4170.3,4170.2,13.33582177]
[1759172141699,0.001,4170.3,4170.2,13.77072177]
[1759172142102,0.001,4170.3,4170.2,14.01502177]
[1759172142822,0.001,4170.3,4170.2,14.45162177]
[1759172143025,0.001,4170.3,4170.2,14.01502177]
[1759172143419,0.001,4170.3,4170.2,13.77072177]
[1759172143800,0.6937,4170.3,4170.2,11.04772177]
[1759172144002,0.6937,4170.3,4170.2,13.77072177]
[1759172144401,0.6937,4170.3,4170.2,13.33582177]
[1759172145642,0.6937,4170.3,4170.2,5.55916317]
[1759172145844,0.6937,4170.3,4170.2,2.83616317]
[1759172146023,0.6937,4170.3,4170.2,5.24016652]
[1759172149549,0.001,4170.3,4170.2,13.46168428]
[1759172149723,0.6937,4170.3,4170.2,13.46168428]
[1759172155262,0.6937,4170.3,4170.2,5.24016652]
[1759172155735,0.6937,4170.3,4170.2,0.1192]
[1759172156064,0.6937,4170.3,4170.2,2.8422]
[1759172156261,0.6937,4170.3,4170.2,5.24016652]
[1759172156937,0.6937,4170.3,4170.2,2.8422]
[1759172157958,0.6937,4170.3,4170.2,2.723]
[1759172158327,1.02668782,4170.3,4169.9,0.1192]
[1759172158533,0.2296,4170.2,4170.0,5.12106143]
[1759172158845,0.6927,4170.1,4170.0,5.12106143]
[1759172162576,0.6927,4170.1,4170.0,2.723]
[1759172163302,0.6927,4170.1,4170.0,5.12108153]
[1759172163575,0.6927,4170.1,4170.0,2.723]
[1759172163747,0.83134,4170.1,4170.0,5.12108153]
[1759172166472,0.6927,4170.1,4170.0,5.12108153]
[1759172169679,0.72243912,4170.3,4170.2,2.39796652]
[1759172169860,0.001,4170.3,4170.2,5.14494618]
[1759172170061,0.001,4170.3,4170.2,5.35126652]
[1759172170260,0.001,4170.3,4170.2,5.79466652]
[1759172170987,0.001,4170.3,4170.2,5.35126652]
[1759172178092,0.001,4170.3,4170.2,5.81326652]
[1759172178386,0.001,4170.3,4170.2,6.63440133]
[1759172178580,0.001,4170.3,4170.2,6.17240133]
[1759172179794,0.001,4170.3,4170.2,6.29160133]
[1759172181992,0.001,4170.3,4170.2,6.06130133]
[1759172182204,0.001,4170.3,4170.2,5.24016652]
[1759172184100,0.001,4170.3,4170.2,2.51716652]
[1759172184305,0.6861,4170.3,4169.8,0.002]
[1759172184505,0.78327847,4170.3,4169.8,0.002]
[1759172184705,0.37832785,4170.2,4169.8,0.002]
[1759172185100,0.6851,4170.1,4169.8,0.002]
[1759172185305,1.4065825,4170.1,4169.8,0.002]
[1759172185604,0.001,4170.3,4170.0,2.39808153]
[1759172185902,0.78128564,4170.2,4170.1,5.12002402]
[1759172186306,0.53558564,4170.2,4170.1,5.12002402]
[1759172186610,0.001,4170.3,4170.2,2.39796652]
[1759172186807,0.001,4170.3,4170.2,2.42194618]
[1759172187105,0.6861,4170.3,4170.1,5.12000458]
[1759172187305,0.6851,4170.2,4170.1,2.722]
[1759172190912,0.80726856,4170.2,4169.8,0.002]
[1759172191115,0.4394,4170.1,4169.8,0.002]
[1759172191285,2.83746658,4170.1,4169.8,0.002]
[1759172191485,3.2457,4170.0,4169.8,0.002]
[1759172192007,0.4394,4169.9,4169.8,0.002]
[1759172192396,1.16091547,4169.9,4169.8,0.002]
[1759172192581,1.40661547,4169.9,4169.8,0.002]
[1759172193335,2.08707415,4169.9,4169.8,0.002]
[1759172195321,1.36555868,4169.9,4169.8,0.002]
[1759172201611,0.6851,4169.9,4169.8,0.002]
[1759172206049,0.1192,4170.1,4169.8,0.002]
[1759172206345,0.001,4170.3,4170.0,2.39808153]
[1759172206641,0.001,4170.3,4170.0,0.2298]
[1759172206854,0.4583,4170.3,4169.9,2.39811746]
[1759172207005,0.001,4170.3,4169.9,2.39811746]
[1759172207214,0.001,4170.3,4169.8,2.724]
[1759172207539,0.001,4170.3,4169.9,2.65186338]
[1759172207729,0.6936,4170.3,4169.9,2.62788199]
[1759172209853,0.6936,4170.3,4169.9,0.2298]
[1759172210040,0.001,4170.3,4170.1,2.39802132]
[1759172210243,0.001,4170.3,4170.0,2.42204331]
[1759172210453,0.001,4170.3,4170.1,0.2298]
[1759172211442,0.001,4170.3,4169.9,2.62791893]
[1759172211443,0.4583,4170.3,4169.9,2.62791893]
[1759172211835,0.6936,4170.3,4169.9,2.62791893]
[1759172212014,0.6936,4170.3,4170.0,2.42205309]
[1759172212221,0.001,4170.3,4170.1,2.39801527]
[1759172212421,0.001,4170.3,4170.2,0.2298]
[1759172213963,0.001,4170.3,4170.0,2.62786582]
[1759172214162,0.001,4170.3,4170.1,0.2298]
[1759172216730,0.001,4170.3,4170.2,0.2298]
[1759172216930,0.001,4170.3,4170.0,0.2298]
[1759172217130,0.001,4170.3,4169.8,2.724]
[1759172217342,0.6926,4170.2,4169.8,5.12218443]
[1759172217661,0.001,4170.3,4169.9,3.07601745]
[1759172217852,0.001,4170.3,4169.9,2.84621745]
[1759172218061,0.001,4170.3,4170.0,0.2298]
[1759172218864,0.001,4170.3,4170.0,2.62787644]
[1759172219078,0.001,4170.3,4170.0,2.39807644]
[1759172219234,0.001,4170.3,4170.0,0.2298]
[1759172219876,0.001,4170.3,4170.1,0.2298]
[1759172223879,0.001,4170.3,4169.8,5.12214526]
[1759172224050,0.6936,4170.3,4169.9,0.2298]
[1759172224241,0.6936,4170.3,4169.9,2.62793134]
[1759172225673,0.6926,4170.2,4169.8,2.724]
[1759172226040,0.6926,4170.2,4169.8,2.9538]
[1759172226447,0.6926,4170.2,4169.8,5.35199213]
[1759172227284,0.6926,4170.1,4169.8,5.12219213]
[1759172227462,0.001,4170.3,4169.8,5.35199213]
[1759172227667,0.6936,4170.3,4169.9,0.2298]
[1759172228287,0.4583,4170.3,4170.0,0.2298]
[1759172228486,0.001,4170.3,4170.0,2.62787757]
[1759172229080,0.001,4170.3,4170.0,0.2298]
[1759172229590,0.001,4170.3,4170.0,2.62786983]
[1759172230088,0.001,4170.3,4170.0,2.39806983]
[1759172230292,0.001,4170.3,4170.1,0.2443]
[1759172234701,0.001,4170.3,4169.9,2.3981175]
[1759172234908,0.001,4170.3,4170.0,0.2401]
[1759172235474,0.7136,4170.2,4169.8,2.724]
[1759172235677,0.7136,4170.1,4169.8,2.724]
[1759172236012,0.7136,4170.0,4169.8,0.002]
[1759172236214,0.8328,4170.2,4169.8,0.002]
[1759172236396,0.2471,4170.1,4169.8,0.002]
[1759172236713,0.7136,4170.1,4169.8,0.002]
[1759172236873,3.7136,4170.1,4169.8,0.002]
[1759172237072,0.4665,4170.0,4169.8,0.002]
[1759172237510,0.7136,4170.0,4169.8,0.002]
[1759172238200,0.1192,4170.2,4169.8,2.40019567]
[1759172238504,0.7136,4170.1,4169.8,0.002]
[1759172239600,0.70342,4170.2,4169.8,0.002]
[1759172239906,0.70342,4170.2,4169.8,2.40015877]
[1759172240101,0.95052,4170.2,4169.8,0.2421]
[1759172240307,0.7136,4170.1,4169.8,0.2421]
[1759172240502,0.7136,4170.1,4169.8,0.002]
[1759172241008,0.7136,4170.1,4169.8,0.2421]
[1759172241203,0.70342,4170.2,4169.8,0.002]
[1759172241387,0.7136,4170.1,4169.8,0.002]
[1759172241589,3.7136,4170.1,4169.8,0.002]
[1759172241791,3.7136,4170.0,4169.8,0.002]
[1759172241989,0.7136,4170.0,4169.8,0.002]
[1759172242791,0.7136,4169.9,4169.8,0.002]
[1759172243382,0.8328,4170.2,4169.8,2.64027512]
[1759172243698,0.5857,4170.2,4169.9,0.2401]
[1759172244884,0.8328,4170.2,4169.9,0.2401]
[1759172245187,0.7136,4170.1,4169.8,0.002]
[1759172245392,3.7136,4170.1,4169.8,0.002]
[1759172245934,0.4665,4170.0,4169.8,0.002]
[1759172246317,0.7136,4169.9,4169.8,0.002]
[1759172246614,0.88883704,4169.9,4169.8,0.002]
[1759172246908,0.7136,4169.9,4169.8,0.002]
[1759172247585,0.7136,4170.1,4169.8,0.002]
[1759172247984,0.4665,4170.1,4169.8,2.64026326]
[1759172248184,1.03877035,4170.2,4169.8,2.64026326]
[1759172248605,1.03877035,4170.2,4169.9,0.2401]
[1759172248808,1.75237035,4170.2,4169.9,0.2401]
[1759172249103,0.1192,4170.2,4170.0,0.2401]
[1759172249891,0.1192,4170.2,4169.8,0.2421]
[1759172250108,0.7136,4170.1,4169.8,0.2421]
[1759172250987,0.7136,4170.1,4169.8,0.002]
[1759172252126,0.7136,4170.1,4169.8,0.2421]
[1759172252626,0.7136,4170.1,4169.8,0.002]
[1759172255197,0.7136,4170.1,4169.8,0.2421]
[1759172255397,0.7136,4170.0,4169.8,0.002]
[1759172255896,0.72151547,4169.9,4169.8,0.002]
[1759172256097,1.43511547,4169.9,4169.8,0.002]
[1759172257343,1.3639439,4169.9,4169.8,0.002]
[1759172257636,7.22858294,4169.9,4169.8,0.002]
[1759172258430,4.1168439,4169.9,4169.8,0.002]
[1759172258730,6.8378439,4169.9,4169.8,0.002]
[1759172259531,7.5387439,4169.9,4169.8,0.002]
[1759172259915,4.8177439,4169.9,4169.8,0.002]
[1759172260117,7.5387439,4169.9,4169.8,0.002]
[1759172264211,9.93688294,4169.9,4169.8,0.002]
[1759172264941,11.37888294,4169.9,4169.8,0.002]
[1759172269441,8.9807439,4169.9,4169.8,0.002]
[1759172269617,8.9817439,4169.9,4169.8,0.002]
[1759172269819,11.37988294,4169.9,4169.8,0.002]
[1759172270750,11.15777538,4169.9,4169.8,0.002]
[1759172271046,11.25399317,4169.9,4169.8,0.002]
[1759172274424,10.55309317,4169.9,4169.8,0.002]
[1759172274747,10.55309317,4169.9,4169.8,0.2422]
[1759172275254,10.55309317,4169.9,4169.8,0.002]
[1759172275621,7.83209317,4169.9,4169.8,0.002]
[1759172275832,2.61406169,4169.9,4169.8,0.002]
[1759172276052,5.33506169,4169.9,4169.8,0.2422]
[1759172276423,5.33506169,4169.9,4169.8,0.002]
[1759172276619,7.73320073,4169.9,4169.8,0.002]
[1759172277123,5.33506169,4169.9,4169.8,0.002]
[1759172277735,5.33506169,4169.9,4169.8,0.2422]
[1759172277943,5.33506169,4169.9,4169.8,0.002]
[1759172280658,5.33506169,4169.9,4169.8,0.2422]
[1759172281557,9.47159269,4169.9,4169.8,0.002]